[Event "Turkish-ch Youth U18 Boys 2024"]
[Site "Belek Antalya"]
[Date "2024.01.27"]
[Round "9"]
[White "Anacak, Hasan Gunes"]
[Black "Erdogan, Tekin Alp"]
[Result "1/2-1/2"]
[ECO "B30"]
[WhiteElo "2102"]
[BlackElo "1992"]
[Annotator "NA RC"]
[PlyCount "58"]
[EventDate "2024.01.21"]
[EventType "swiss"]
[EventCountry "TUR"]
[SourceTitle "playchess.com"]
[Source "ChessBase"]
[SourceQuality "1"]
[TimeControl "5400+30"]

1. e4 {[%emt 0:01:00]} c5 {[%emt 0:01:00]} 2. Nf3 {[%emt 0:00:30]} Nc6 {[%emt 0:00:00]} 3. Bb5 {[%emt 0:04:30]} e6 {[%emt 0:00:00]} 4. O-O {[%emt 0:02:30]} Nge7 {[%emt 0:00:30]} 5. Re1 {[%emt 0:07:30]} a6 {[%emt 0:00:30]} 6. Bf1 {[%emt 0:02:30]} d5 {[%emt 0:02:30]} 7. exd5 {[%emt 0:02:30]} Nxd5 {[%emt 0:01:30]} 8. d4 {[%emt 0:01:30]} cxd4 {[%emt 0:06:30]} 9. Nxd4 {[%emt 0:01:30]} Qd7 {[%emt 0:00:30]} 10. Nxc6 {[%emt 0:18:30]} Qxc6 {[%emt 0:04:30]} 11. g3 {[%emt 0:03:30]} Nf6 {[%emt 0:11:30]} 12. Bg2 {[%emt 0:04:30]} Qb6 {[%emt 0:03:30]} 13. Nd2 {[%emt 0:02:30]} Qc7 {[%emt 0:12:30]} 14. Nb3 {[%emt 0:12:30]} Bd6 $16 {[%emt 0:07:30]} ({Black should play} 14... Be7) 15. c4 {[%emt 0:00:30]} Nd7 {[%emt 0:03:30]} 16. Be3 {[%emt 0:11:30]} O-O {[%emt 0:05:30]} 17. c5 {[%emt 0:00:30]} Be5 {[%emt 0:00:30]} 18. Qe2 {[%emt 0:00:30]} Nb8 {[%emt 0:11:30]} 19. Bd2 {[%emt 0:01:30]} f6 {[%emt 0:07:33]} 20. f4 {[%emt 0:06:53]} Bxb2 {[%emt 0:00:33]} 21. Ba5 {[%emt 0:00:30]} Bd4+ {[%emt 0:00:30]} 22. Kh1 {[%emt 0:00:30]} Qd7 {[%emt 0:00:00]} 23. Rad1 {[%emt 0:00:00]} e5 {[%emt 0:00:00]} 24. Qc4+ {[%emt 0:00:00]} Kh8 {[%emt 0:02:15]} 25. Nxd4 {[%emt 0:01:02]} exd4 {[%emt 0:00:30]} 26. Rxd4 {[%emt 0:00:30]} Qb5 {[%emt 0:00:30]} 27. Qxb5 {[%emt 0:00:30]} axb5 {[%emt 0:00:30]} 28. Rd8 {[%emt 0:00:30]} Rxd8 {[%emt 0:00:30]} 29. Bxd8 {[%emt 0:00:30]} Bd7 {[%emt 0:00:30]} 1/2-1/2

[Event "Turkish-ch Youth U18 Boys 2024"]
[Site "Belek Antalya"]
[Date "2024.01.27"]
[Round "9"]
[White "Kilic, Nurullah"]
[Black "Temizer, Umut"]
[Result "1-0"]
[ECO "B92"]
[WhiteElo "1751"]
[BlackElo "2071"]
[Annotator "NA RC"]
[PlyCount "81"]
[EventDate "2024.01.21"]
[EventType "swiss"]
[EventCountry "TUR"]
[SourceTitle "playchess.com"]
[Source "ChessBase"]
[SourceQuality "1"]
[TimeControl "5400+30"]

1. e4 {[%emt 0:01:00]} c5 {[%emt 0:01:00]} 2. Nf3 {[%emt 0:02:30]} d6 {[%emt 0:00:30]} 3. d4 {[%emt 0:00:30]} cxd4 {[%emt 0:00:00]} 4. Nxd4 {[%emt 0:00:30]} Nf6 {[%emt 0:00:00]} 5. Nc3 {[%emt 0:01:30]} a6 {[%emt 0:00:00]} 6. Be2 {[%emt 0:00:30]} e5 {[%emt 0:00:00]} 7. Nb3 {[%emt 0:00:30]} Be7 {[%emt 0:00:30]} 8. Be3 {[%emt 0:00:00]} Be6 {[%emt 0:00:00]} 9. Nd5 {[%emt 0:02:00]} Nxd5 {[%emt 0:04:00]} 10. exd5 {[%emt 0:00:30]} Bf5 {[%emt 0:00:30]} 11. Qd2 {[%emt 0:03:30]} Nd7 {[%emt 0:02:30]} 12. Na5 {[%emt 0:04:30]} Qc7 {[%emt 0:03:30]} 13. c4 {[%emt 0:02:30]} O-O {[%emt 0:00:30]} 14. O-O {[%emt 0:06:30]} Bg6 {[%emt 0:01:30]} 15. Rac1 {[%emt 0:06:30]} f5 {[%emt 0:05:30]} 16. f4 {[%emt 0:02:30]} Nc5 {[%emt 0:03:30]} 17. b4 {[%emt 0:04:30]} Ne4 {[%emt 0:00:30]} 18. Qe1 {[%emt 0:01:30]} Rae8 {[%emt 0:06:30]} 19. fxe5 {[%emt 0:21:30]} dxe5 {[%emt 0:02:30]} 20. c5 {[%emt 0:00:30]} Bd8 {[%emt 0:04:30]} 21. d6 {[%emt 0:06:30]} Qd7 {[%emt 0:00:30]} 22. Kh1 {[%emt 0:01:30]} f4 {[%emt 0:02:30]} 23. Bg1 {[%emt 0:00:30]} Bxa5 {[%emt 0:01:30]} 24. bxa5 {[%emt 0:00:00]} Kh8 {[%emt 0:02:30]} 25. Qb4 {[%emt 0:03:00]} Ng5 {[%emt 0:01:30]} 26. Rc3 {[%emt 0:04:30]} Rf6 {[%emt 0:06:30]} 27. Bf2 {[%emt 0:02:30]} Be4 {[%emt 0:31:30]} 28. Bh4 {[%emt 0:02:45]} Qc6 {[%emt 0:00:40]} 29. Bf3 {[%emt 0:01:21]} Nxf3 {[%emt 0:05:28]} 30. gxf3 {[%emt 0:01:06]} Bd5 {[%emt 0:00:30]} 31. Bxf6 {[%emt 0:00:30]} gxf6 {[%emt 0:00:00]} 32. Rd3 {[%emt 0:02:37]} e4 {[%emt 0:01:51]} 33. Qd4 {[%emt 0:00:12]} Re5 {[%emt 0:00:26]} 34. d7 {[%emt 0:00:16]} Qxd7 {[%emt 0:04:33]} 35. fxe4 {[%emt 0:00:30]} Qf5 {[%emt 0:00:30]} 36. exd5 {[%emt 0:00:30]} Re4 {[%emt 0:00:30]} 37. Qf2 {[%emt 0:00:30]} Rc4 {[%emt 0:00:30]} 38. Rd4 {[%emt 0:00:30]} Rxd4 {[%emt 0:00:30]} 39. Qxd4 {[%emt 0:00:30]} f3 {[%emt 0:00:30]} 40. Qe3 {[%emt 0:00:30]} Kg8 {[%emt 0:00:30]} 41. Qe6+ {[%emt 0:00:30]} 1-0

[Event "Turkish-ch Youth U18 Boys 2024"]
[Site "Belek Antalya"]
[Date "2024.01.27"]
[Round "9"]
[White "Ermemis, Kadir Efe"]
[Black "Ozen, Metehan"]
[Result "0-1"]
[ECO "B50"]
[WhiteElo "1725"]
[BlackElo "2252"]
[Annotator "RC"]
[PlyCount "46"]
[EventDate "2024.01.21"]
[EventType "swiss"]
[EventCountry "TUR"]
[SourceTitle "playchess.com"]
[Source "ChessBase"]
[SourceQuality "1"]
[TimeControl "5400+30"]

1. e4 {[%emt 0:01:00]} c5 {[%emt 0:01:00]} 2. Nf3 {[%emt 0:00:30]} d6 {[%emt 0:00:30]} 3. c4 {[%emt 0:01:30]} e5 {[%emt 0:00:30]} 4. Be2 {[%emt 0:01:30]} Nc6 {[%emt 0:00:30]} 5. O-O {[%emt 0:00:30]} g6 {[%emt 0:00:30]} 6. d3 {[%emt 0:01:30]} Bg7 {[%emt 0:00:00]} 7. Nc3 {[%emt 0:01:30]} Nge7 {[%emt 0:00:00]} 8. Ne1 {[%emt 0:04:30]} O-O {[%emt 0:06:30]} 9. f4 {[%emt 0:02:30]} f5 {[%emt 0:02:30]} 10. fxe5 {[%emt 0:03:30]} Nxe5 {[%emt 0:00:30]} 11. Bf3 {[%emt 0:02:30]} f4 {[%emt 0:01:30]} 12. Be2 {[%emt 0:04:30]} g5 {[%emt 0:01:30]} 13. h3 {[%emt 0:08:30]} N7g6 {[%emt 0:07:30]} 14. Nd5 {[%emt 0:03:30]} Nh4 {[%emt 0:12:30]} 15. Nf3 {[%emt 0:04:30]} Nhxf3+ {[%emt 0:14:30]} 16. Bxf3 {[%emt 0:00:30]} g4 {[%emt 0:04:30]} 17. Be2 {[%emt 0:10:30]} f3 {[%emt 0:01:30]} 18. gxf3 {[%emt 0:00:30]} Qh4 {[%emt 0:00:30]} 19. hxg4 {[%emt 0:05:30]} Qg3+ {[%emt 0:04:30]} 20. Kh1 {[%emt 0:00:30]} Be6 {[%emt 0:12:30]} 21. Ne7+ {[%emt 0:05:30]} Kh8 {[%emt 0:00:30]} 22. Qe1 {[%emt 0:00:30]} Qh3+ {[%emt 0:00:30]} 23. Kg1 {[%emt 0:00:30]} Nxg4 {[%emt 0:00:30]} 0-1

[Event "Turkish-ch Youth U18 Boys 2024"]
[Site "Belek Antalya"]
[Date "2024.01.27"]
[Round "9"]
[White "Giray, Arda"]
[Black "Kaderoglu, Ali Efe"]
[Result "0-1"]
[ECO "C10"]
[WhiteElo "1323"]
[BlackElo "1262"]
[Annotator "NA RC COMBH"]
[PlyCount "121"]
[EventDate "2024.01.21"]
[EventType "swiss"]
[EventCountry "TUR"]
[SourceTitle "playchess.com"]
[Source "ChessBase"]
[SourceQuality "1"]
[TimeControl "5400+30"]

1. e4 {[%emt 0:01:00]} e6 {[%emt 0:08:00]} 2. Nf3 {[%emt 0:00:30]} d5 {[%emt 0:00:30]} 3. Nc3 {[%emt 0:00:00]} dxe4 {[%emt 0:05:30]} 4. Nxe4 {[%emt 0:00:00]} Be7 {[%emt 0:00:30]} 5. d4 {[%emt 0:11:30]} Nf6 {[%emt 0:01:30]} 6. Bd3 {[%emt 0:00:30]} Nbd7 {[%emt 0:01:30]} 7. Nxf6+ {[%emt 0:01:30]} Nxf6 {[%emt 0:02:30]} 8. O-O {[%emt 0:01:30]} O-O {[%emt 0:00:30]} 9. c3 {[%emt 0:00:30]} b6 {[%emt 0:04:30]} 10. Qe2 {[%emt 0:09:30]} Bb7 {[%emt 0:03:30]} 11. b4 {[%emt 0:06:30]} c5 {[%emt 0:05:30]} 12. bxc5 {[%emt 0:04:30]} bxc5 {[%emt 0:01:30]} 13. Be3 {[%emt 0:21:30]} Qa5 {[%emt 0:22:30]} 14. Rab1 {[%emt 0:10:30]} Bxf3 {[%emt 0:10:30]} 15. gxf3 {[%emt 0:00:30]} Rab8 {[%emt 0:00:30]} 16. Kh1 {[%emt 0:05:30]} Qxc3 {[%emt 0:04:30]} 17. Rfc1 {[%emt 0:02:30]} Rxb1 {[%emt 0:05:30]} 18. Bxb1 {[%emt 0:00:30]} Qa5 {[%emt 0:00:30]} 19. dxc5 {[%emt 0:00:30]} Rc8 {[%emt 0:04:30]} 20. Qb2 {[%emt 0:13:19]} Qc7 {[%emt 0:09:40]} 21. Rg1 {[%emt 0:02:15]} e5 {[%emt 0:00:30]} 22. Rc1 {[%emt 0:00:30]} Qc6 {[%emt 0:00:30]} 23. Qxe5 {[%emt 0:00:30]} Qxf3+ {[%emt 0:00:30]} 24. Kg1 {[%emt 0:00:30]} Qg4+ {[%emt 0:00:30]} 25. Kh1 {[%emt 0:00:30]} Qf3+ {[%emt 0:00:30]} 26. Kg1 {[%emt 0:00:30]} Qg4+ {[%emt 0:00:30]} 27. Qg3 {[%emt 0:00:30]} Qe6 {[%emt 0:04:02]} 28. Qf3 {[%emt 0:06:08]} g6 {[%emt 0:01:32]} 29. c6 {[%emt 0:01:04]} Nd5 {[%emt 0:00:31]} 30. Be4 {[%emt 0:00:00]} Nf6 {[%emt 0:01:01]} 31. Bb1 {[%emt 0:00:30]} Nd5 {[%emt 0:00:30]} 32. Be4 {[%emt 0:00:30]} Nf6 {[%emt 0:00:30]} 33. Bd3 {[%emt 0:00:30]} Bd6 {[%emt 0:00:30]} 34. Ba6 {[%emt 0:00:30]} Rc7 {[%emt 0:00:30]} 35. a4 {[%emt 0:00:30]} Qe5 {[%emt 0:00:46]} 36. h3 {[%emt 0:00:10]} Nd5 {[%emt 0:00:55]} 37. Bc4 {[%emt 0:00:46]} Nf6 {[%emt 0:01:07]} 38. Kf1 {[%emt 0:00:39]} Kg7 {[%emt 0:00:01]} 39. Bd3 {[%emt 0:00:30]} Nd5 {[%emt 0:00:30]} 40. Bc4 {[%emt 0:00:30]} Nf6 {[%emt 0:00:30]} 41. Bb5 {[%emt 0:00:30]} Nd5 {[%emt 0:00:30]} 42. Rd1 {[%emt 0:00:30]} Nxe3+ {[%emt 0:00:00]} 43. fxe3 {[%emt 0:00:00]} Bc5 {[%emt 0:00:26]} 44. Rd7 {[%emt 0:00:12]} Qa1+ {[%emt 0:01:09]} 45. Kg2 {[%emt 0:00:35]} Qb2+ {[%emt 0:00:09]} 46. Kg3 {[%emt 0:00:32]} Qe5+ {[%emt 0:00:30]} 47. Qf4 {[%emt 0:00:30]} Qxf4+ {[%emt 0:00:30]} 48. Kxf4 {[%emt 0:00:30]} Bb6 {[%emt 0:00:30]} 49. Ke5 {[%emt 0:00:30]} Rxd7 {[%emt 0:00:30]} 50. cxd7 {[%emt 0:00:30]} f5 {[%emt 0:00:56]} 51. Kd6 {[%emt 0:01:00]} Kf8 {[%emt 0:00:15]} 52. Ke6 {[%emt 0:00:12]} Ba5 {[%emt 0:00:11]} 53. Kf6 {[%emt 0:00:30]} Bd8+ {[%emt 0:00:30]} 54. Ke6 {[%emt 0:00:30]} Bb6 {[%emt 0:00:00]} 55. h4 {[%emt 0:00:00]} Ba5 {[%emt 0:00:17]} 56. h5 {[%emt 0:00:46]} Bd8 {[%emt 0:00:34]} 57. hxg6 {[%emt 0:00:07]} hxg6 {[%emt 0:00:05]} 58. Bc6 {[%emt 0:00:11]} Kg8 {[%emt 0:01:18]} 59. a5 {[%emt 0:00:45]} Bxa5 {[%emt 0:01:11]} 60. Ke7 {[%emt 0:00:30]} Kg7 {[%emt 0:00:00]} 61. d8=Q {[%emt 0:00:01]} 0-1

[Event "Turkish-ch Youth U18 Boys 2024"]
[Site "Belek Antalya"]
[Date "2024.01.27"]
[Round "9"]
[White "Yildirim, Orhun Ali"]
[Black "Aksu, Ata Anil"]
[Result "0-1"]
[ECO "B25"]
[WhiteElo "1229"]
[BlackElo "1728"]
[Annotator "NA RC COMBH"]
[PlyCount "69"]
[EventDate "2024.01.21"]
[EventType "swiss"]
[EventCountry "TUR"]
[SourceTitle "playchess.com"]
[Source "ChessBase"]
[SourceQuality "1"]
[TimeControl "5400+30"]

1. e4 {[%emt 0:01:00]} c5 {[%emt 0:01:00]} 2. Nc3 {[%emt 0:00:00]} Nc6 {[%emt 0:00:30]} 3. g3 {[%emt 0:00:00]} g6 {[%emt 0:00:30]} 4. Bg2 {[%emt 0:00:30]} Bg7 {[%emt 0:00:30]} 5. Nge2 {[%emt 0:00:00]} d6 {[%emt 0:00:30]} 6. d3 {[%emt 0:00:00]} Rb8 {[%emt 0:00:30]} 7. a4 {[%emt 0:00:30]} a6 {[%emt 0:00:30]} 8. h3 {[%emt 0:00:00]} e6 {[%emt 0:01:30]} 9. O-O {[%emt 0:00:00]} Nge7 {[%emt 0:00:30]} 10. f4 {[%emt 0:00:30]} b5 {[%emt 0:00:30]} 11. axb5 {[%emt 0:00:30]} axb5 {[%emt 0:00:30]} 12. g4 {[%emt 0:00:30]} b4 {[%emt 0:00:30]} 13. Nb1 {[%emt 0:00:30]} f5 {[%emt 0:00:30]} 14. Nd2 {[%emt 0:04:30]} O-O {[%emt 0:00:30]} 15. Nf3 {[%emt 0:01:30]} Qb6 {[%emt 0:11:30]} 16. Kh1 {[%emt 0:00:30]} h6 {[%emt 0:00:30]} 17. Qe1 {[%emt 0:03:30]} Bd7 {[%emt 0:09:30]} 18. Qg3 {[%emt 0:05:30]} Rbe8 {[%emt 0:01:30]} 19. Rg1 {[%emt 0:02:30]} Kh7 {[%emt 0:05:30]} 20. Bf1 {[%emt 0:01:30]} Qb7 {[%emt 0:03:30]} 21. c3 {[%emt 0:04:30]} bxc3 {[%emt 0:03:30]} 22. bxc3 {[%emt 0:03:30]} c4 {[%emt 0:03:30]} 23. gxf5 {[%emt 0:00:30]} exf5 {[%emt 0:00:30]} 24. Nh4 {[%emt 0:00:30]} Rf6 {[%emt 0:00:30]} 25. Kh2 {[%emt 0:03:30]} cxd3 {[%emt 0:01:30]} 26. Nd4 {[%emt 0:00:00]} Nxd4 {[%emt 0:00:00]} 27. e5 {[%emt 0:05:00]} dxe5 {[%emt 0:13:00]} 28. fxe5 {[%emt 0:01:30]} Re6 {[%emt 0:00:30]} 29. cxd4 {[%emt 0:00:30]} Qe4 {[%emt 0:00:00]} 30. Bxd3 {[%emt 0:02:30]} Qxd4 {[%emt 0:00:00]} 31. Bf4 {[%emt 0:00:30]} Qb2+ {[%emt 0:05:30]} 32. Rg2 {[%emt 0:02:30]} Qxa1 {[%emt 0:00:00]} 33. Nxf5 Nxf5 {[%emt 0:01:00]} 34. Bxf5 Qa6 {[%emt 0:00:30]} 35. Bxe6 {[%emt 0:04:30]} 0-1